[Event "Titled Tuesday Blitz November 01 Late 2022"]
[White "Kilic, Eray"]
[Black "Sanal, Vahap"]
[WhiteFideId "44517173"]
[BlackFideId "6300545"]
[WhiteElo "2771"]
[BlackElo "2965"]
[Result "1/2-1/2"]
[Round "03"]
[TimeControl "180+1"]
[Date "2022.11.01"]
[WhiteClock "0:00:03"]
[BlackClock "0:00:03"]

1. e4 {[%clk 0:03:00]}  d6 {[%clk 0:02:58]} 2. d4 {[%clk 0:03:01]}  Nf6 {[%clk 0:02:58]} 3. Nc3 {[%clk 0:03:01]}  e5 {[%clk 0:02:59]} 4. Nf3 {[%clk 0:03:01]}  Nbd7 {[%clk 0:02:58]} 5. Bc4 {[%clk 0:03:01]}  Be7 {[%clk 0:02:57]} 6. O-O {[%clk 0:03:01]}  O-O {[%clk 0:02:58]} 7. Re1 {[%clk 0:03:01]}  c6 {[%clk 0:02:58]} 8. a4 {[%clk 0:03:01]}  h6 {[%clk 0:02:58]} 9. Ba2 {[%clk 0:03:02]}  Re8 {[%clk 0:02:57]} 10. h3 {[%clk 0:03:01]}  Qc7 {[%clk 0:02:44]} 11. Be3 {[%clk 0:02:58]}  Nf8 {[%clk 0:02:42]} 12. dxe5 {[%clk 0:02:53]}  dxe5 {[%clk 0:02:41]} 13. Qe2 {[%clk 0:02:54]}  Ng6 {[%clk 0:02:41]} 14. Rad1 {[%clk 0:02:53]}  Bb4 {[%clk 0:02:30]} 15. Bd2 {[%clk 0:02:27]}  a5 {[%clk 0:02:29]} 16. Nb1 {[%clk 0:02:19]}  Re7 {[%clk 0:02:00]} 17. Bb3 {[%clk 0:02:08]}  Nh5 {[%clk 0:01:49]} 18. Bxb4 {[%clk 0:01:58]}  axb4 {[%clk 0:01:49]} 19. Qd2 {[%clk 0:01:57]}  Qa5 {[%clk 0:01:35]} 20. Qd8+ {[%clk 0:01:55]}  Kh7 {[%clk 0:01:34]} 21. Qxa5 {[%clk 0:01:52]}  Rxa5 {[%clk 0:01:34]} 22. Nbd2 {[%clk 0:01:53]}  Nhf4 {[%clk 0:01:23]} 23. Nc4 {[%clk 0:01:51]}  Ra7 {[%clk 0:01:23]} 24. Nb6 {[%clk 0:01:35]}  Be6 {[%clk 0:01:18]} 25. Bxe6 {[%clk 0:01:35]}  Rxe6 {[%clk 0:01:19]} 26. b3 {[%clk 0:01:35]}  Ra6 {[%clk 0:01:17]} 27. Nc4 {[%clk 0:01:34]}  b5 {[%clk 0:01:16]} 28. axb5 {[%clk 0:01:34]}  cxb5 {[%clk 0:01:17]} 29. Ne3 {[%clk 0:01:35]}  Re7 {[%clk 0:00:58]} 30. g3 {[%clk 0:01:25]}  Ne6 {[%clk 0:00:54]} 31. Nd5 {[%clk 0:01:25]}  Re8 {[%clk 0:00:47]} 32. Nxb4 {[%clk 0:01:25]}  Ra7 {[%clk 0:00:48]} 33. Rd2 {[%clk 0:01:23]}  Rc7 {[%clk 0:00:48]} 34. Nd5 {[%clk 0:01:20]}  Rc6 {[%clk 0:00:45]} 35. Ra1 {[%clk 0:01:20]}  Rec8 {[%clk 0:00:45]} 36. Ra7 {[%clk 0:01:11]}  Nc7 {[%clk 0:00:32]} 37. Nb4 {[%clk 0:01:08]}  Rc3 {[%clk 0:00:30]} 38. Kg2 {[%clk 0:01:08]}  Kg8 {[%clk 0:00:27]} 39. Rb7 {[%clk 0:00:56]}  f6 {[%clk 0:00:22]} 40. Rd3 {[%clk 0:00:54]}  Rxd3 {[%clk 0:00:21]} 41. cxd3 {[%clk 0:00:53]}  Nf8 {[%clk 0:00:21]} 42. d4 {[%clk 0:00:51]}  exd4 {[%clk 0:00:19]} 43. Nxd4 {[%clk 0:00:52]}  Nfe6 {[%clk 0:00:19]} 44. Nxe6 {[%clk 0:00:50]}  Nxe6 {[%clk 0:00:20]} 45. Rxb5 {[%clk 0:00:49]}  Rc3 {[%clk 0:00:20]} 46. Nd5 {[%clk 0:00:48]}  Rc2 {[%clk 0:00:21]} 47. b4 {[%clk 0:00:46]}  Ng5 {[%clk 0:00:21]} 48. Rb8+ {[%clk 0:00:38]}  Kf7 {[%clk 0:00:21]} 49. Rb7+ {[%clk 0:00:38]}  Kf8 {[%clk 0:00:22]} 50. Nf4 {[%clk 0:00:25]}  Nxe4 {[%clk 0:00:18]} 51. Ne6+ {[%clk 0:00:25]}  Kg8 {[%clk 0:00:15]} 52. Rxg7+ {[%clk 0:00:23]}  Kh8 {[%clk 0:00:16]} 53. Re7 {[%clk 0:00:20]}  Rxf2+ {[%clk 0:00:16]} 54. Kg1 {[%clk 0:00:20]}  Rb2 {[%clk 0:00:16]} 55. g4 {[%clk 0:00:17]}  Rxb4 {[%clk 0:00:14]} 56. Nc7 {[%clk 0:00:17]}  Ng5 {[%clk 0:00:13]} 57. Re3 {[%clk 0:00:15]}  Rb6 {[%clk 0:00:10]} 58. Nd5 {[%clk 0:00:16]}  Rd6 {[%clk 0:00:10]} 59. Nf4 {[%clk 0:00:16]}  Nf7 {[%clk 0:00:10]} 60. Re7 {[%clk 0:00:15]}  Kg8 {[%clk 0:00:10]} 61. Nh5 {[%clk 0:00:15]}  Kf8 {[%clk 0:00:10]} 62. Re3 {[%clk 0:00:16]}  Ng5 {[%clk 0:00:09]} 63. h4 {[%clk 0:00:15]}  Nh7 {[%clk 0:00:09]} 64. Re4 {[%clk 0:00:15]}  Kf7 {[%clk 0:00:09]} 65. Ng3 {[%clk 0:00:16]}  Nf8 {[%clk 0:00:10]} 66. Nf5 {[%clk 0:00:16]}  Rd1+ {[%clk 0:00:10]} 67. Kg2 {[%clk 0:00:16]}  h5 {[%clk 0:00:07]} 68. Re7+ {[%clk 0:00:13]}  Kg8 {[%clk 0:00:06]} 69. gxh5 {[%clk 0:00:10]}  Rd5 {[%clk 0:00:07]} 70. Ng3 {[%clk 0:00:09]}  Re5 {[%clk 0:00:05]} 71. Ra7 {[%clk 0:00:08]}  Ne6 {[%clk 0:00:04]} 72. h6 {[%clk 0:00:09]}  Nf4+ {[%clk 0:00:04]} 73. Kf3 {[%clk 0:00:09]}  Ng6 {[%clk 0:00:04]} 74. h5 {[%clk 0:00:09]}  Nh4+ {[%clk 0:00:04]} 75. Kg4 {[%clk 0:00:09]}  Ng2 {[%clk 0:00:04]} 76. Kf3 {[%clk 0:00:07]}  Nh4+ {[%clk 0:00:04]} 77. Kf4 {[%clk 0:00:07]}  Ng2+ {[%clk 0:00:04]} 78. Kg4 {[%clk 0:00:07]}  Ne3+ {[%clk 0:00:04]} 79. Kf3 {[%clk 0:00:07]}  Nf5 {[%clk 0:00:04]} 80. Ne4 {[%clk 0:00:07]}  Nd4+ {[%clk 0:00:03]} 81. Kf4 {[%clk 0:00:07]}  Ne6+ {[%clk 0:00:04]} 82. Kf3 {[%clk 0:00:07]}  Ng5+ {[%clk 0:00:04]} 83. Nxg5 {[%clk 0:00:07]}  Rxg5 {[%clk 0:00:05]} 84. Kf4 {[%clk 0:00:06]}  Rxh5 {[%clk 0:00:05]} 85. Rg7+ {[%clk 0:00:06]}  Kf8 {[%clk 0:00:03]} 86. Rh7 {[%clk 0:00:07]}  Kg8 {[%clk 0:00:02]} 87. Rg7+ {[%clk 0:00:07]}  Kf8 {[%clk 0:00:03]} 88. Rh7 {[%clk 0:00:03]}  Kg8 {[%clk 0:00:03]} 89. Rg7+ {[%clk 0:00:03]} 1/2-1/2


[Site "https://www.chess.com"]

[Event "Titled Tuesday Blitz November 01 Late 2022"]
[White "Kobla, Vishal"]
[Black "Mikhailuk, Slava"]
[WhiteFideId "2078457"]
[BlackFideId "2012910"]
[WhiteElo "1972"]
[BlackElo "2353"]
[Result "0-1"]
[Round "03"]
[TimeControl "180+1"]
[Date "2022.11.02"]
[WhiteClock "0:01:50"]
[BlackClock "0:01:59"]

1. e4 {[%clk 0:02:59]}  c5 {[%clk 0:02:59]} 2. Nf3 {[%clk 0:03:00]}  Nc6 {[%clk 0:02:59]} 3. d4 {[%clk 0:02:58]}  cxd4 {[%clk 0:03:00]} 4. Nxd4 {[%clk 0:02:58]}  Nf6 {[%clk 0:03:00]} 5. Nc3 {[%clk 0:02:52]}  d6 {[%clk 0:03:00]} 6. Bg5 {[%clk 0:02:49]}  Bd7 {[%clk 0:02:59]} 7. Qd2 {[%clk 0:02:42]}  Rc8 {[%clk 0:02:59]} 8. O-O-O {[%clk 0:02:42]}  Nxd4 {[%clk 0:02:59]} 9. Qxd4 {[%clk 0:02:42]}  Qa5 {[%clk 0:02:59]} 10. f4 {[%clk 0:02:41]}  Rxc3 {[%clk 0:02:59]} 11. Qxc3 {[%clk 0:02:39]}  Qxc3 {[%clk 0:02:57]} 12. bxc3 {[%clk 0:02:39]}  Nxe4 {[%clk 0:02:58]} 13. Kb2 {[%clk 0:02:37]}  Nf2 {[%clk 0:02:56]} 14. Be2 {[%clk 0:02:36]}  Nxh1 {[%clk 0:02:56]} 15. Rxh1 {[%clk 0:02:37]}  Bc6 {[%clk 0:02:50]} 16. Rg1 {[%clk 0:02:37]}  e6 {[%clk 0:02:49]} 17. g3 {[%clk 0:02:31]}  Be7 {[%clk 0:02:49]} 18. Bxe7 {[%clk 0:02:32]}  Kxe7 {[%clk 0:02:50]} 19. Rd1 {[%clk 0:02:32]}  e5 {[%clk 0:02:46]} 20. c4 {[%clk 0:02:21]}  Rd8 {[%clk 0:02:33]} 21. c5 {[%clk 0:02:19]}  exf4 {[%clk 0:02:31]} 22. cxd6+ {[%clk 0:02:18]}  Rxd6 {[%clk 0:02:32]} 23. Re1 {[%clk 0:02:17]}  fxg3 {[%clk 0:02:28]} 24. Bc4+ {[%clk 0:02:15]}  Kf8 {[%clk 0:02:24]} 25. hxg3 {[%clk 0:02:15]}  f6 {[%clk 0:02:19]} 26. c3 {[%clk 0:02:10]}  Rd2+ {[%clk 0:02:17]} 27. Kc1 {[%clk 0:02:09]}  Rg2 {[%clk 0:02:16]} 28. Re3 {[%clk 0:02:08]}  h5 {[%clk 0:02:14]} 29. Be2 {[%clk 0:02:04]}  g6 {[%clk 0:02:13]} 30. a3 {[%clk 0:02:00]}  Kg7 {[%clk 0:02:04]} 31. Re7+ {[%clk 0:01:57]}  Kh6 {[%clk 0:02:04]} 32. Re6 {[%clk 0:01:57]}  Kg5 {[%clk 0:02:03]} 33. Re3 {[%clk 0:01:55]}  f5 {[%clk 0:02:03]} 34. Kd2 {[%clk 0:01:52]}  f4 {[%clk 0:02:02]} 35. Re5+ {[%clk 0:01:51]}  Kf6 {[%clk 0:02:00]} 36. gxf4 {[%clk 0:01:52]}  Bf3 {[%clk 0:02:00]} 37. Ke1 {[%clk 0:01:48]}  Rxe2+ {[%clk 0:02:00]} 38. Rxe2 {[%clk 0:01:49]}  Bxe2 {[%clk 0:02:00]} 39. Kxe2 {[%clk 0:01:50]}  Kf5 {[%clk 0:01:59]} 40. Kf3 {[%clk 0:01:51]}  b5 {[%clk 0:01:58]} 41. Kg3 {[%clk 0:01:49]}  g5 {[%clk 0:01:58]} 42. fxg5 {[%clk 0:01:49]}  Kxg5 {[%clk 0:01:59]} 43. Kh3 {[%clk 0:01:50]}  Kf5 {[%clk 0:01:59]} 44. Kg3 {[%clk 0:01:50]}  Ke4 {[%clk 0:01:59]} 0-1


[Site "https://www.chess.com"]

[Event "Titled Tuesday Blitz November 01 Late 2022"]
[White "Kollars, Dmitrij"]
[Black "Vusatiuk, Vladimir"]
[WhiteFideId "12909572"]
[BlackFideId "14118610"]
[WhiteElo "2584"]
[BlackElo "2208"]
[Result "0-1"]
[Round "03"]
[TimeControl "180+1"]
[Date "2022.11.02"]
[WhiteClock "0:00:01"]
[BlackClock "0:00:36"]

1. Nf3 {[%clk 0:03:00]}  Nf6 {[%clk 0:02:59]} 2. g3 {[%clk 0:02:59]}  g6 {[%clk 0:02:59]} 3. Bg2 {[%clk 0:02:58]}  Bg7 {[%clk 0:02:59]} 4. O-O {[%clk 0:02:59]}  O-O {[%clk 0:03:00]} 5. c4 {[%clk 0:03:00]}  c6 {[%clk 0:03:00]} 6. d4 {[%clk 0:02:59]}  d5 {[%clk 0:03:01]} 7. b3 {[%clk 0:03:00]}  a5 {[%clk 0:02:59]} 8. Nc3 {[%clk 0:02:59]}  Ne4 {[%clk 0:02:58]} 9. Bb2 {[%clk 0:02:56]}  Nxc3 {[%clk 0:02:44]} 10. Bxc3 {[%clk 0:02:57]}  b5 {[%clk 0:02:41]} 11. Ne5 {[%clk 0:02:45]}  b4 {[%clk 0:02:39]} 12. Bb2 {[%clk 0:02:44]}  Bxe5 {[%clk 0:02:04]} 13. dxe5 {[%clk 0:02:42]}  dxc4 {[%clk 0:02:04]} 14. bxc4 {[%clk 0:02:28]}  Qxd1 {[%clk 0:02:03]} 15. Rfxd1 {[%clk 0:02:29]}  Be6 {[%clk 0:02:03]} 16. a3 {[%clk 0:02:25]}  b3 {[%clk 0:01:55]} 17. a4 {[%clk 0:02:13]}  Bxc4 {[%clk 0:01:54]} 18. Ba3 {[%clk 0:02:08]}  Bxe2 {[%clk 0:01:43]} 19. Rd2 {[%clk 0:02:01]}  Bc4 {[%clk 0:01:35]} 20. Bxe7 {[%clk 0:01:58]}  Rc8 {[%clk 0:01:31]} 21. Rad1 {[%clk 0:01:28]}  Bd5 {[%clk 0:01:22]} 22. Bxd5 {[%clk 0:01:22]}  cxd5 {[%clk 0:01:23]} 23. Rxd5 {[%clk 0:01:23]}  Nc6 {[%clk 0:01:24]} 24. Bd6 {[%clk 0:01:21]}  Nb4 {[%clk 0:01:19]} 25. R5d2 {[%clk 0:01:00]}  Rc2 {[%clk 0:01:13]} 26. Kf1 {[%clk 0:00:41]}  Rac8 {[%clk 0:01:05]} 27. Ke2 {[%clk 0:00:37]}  Na2 {[%clk 0:01:03]} 28. Kd3 {[%clk 0:00:10]}  Nc1+ {[%clk 0:00:56]} 29. Rxc1 {[%clk 0:00:04]}  Rxc1 {[%clk 0:00:56]} 30. Rb2 {[%clk 0:00:05]}  R8c3+ {[%clk 0:00:53]} 31. Kd4 {[%clk 0:00:05]}  R1c2 {[%clk 0:00:52]} 32. Rb1 {[%clk 0:00:06]}  b2 {[%clk 0:00:50]} 33. Rxb2 {[%clk 0:00:05]}  Rxb2 {[%clk 0:00:49]} 34. Kxc3 {[%clk 0:00:06]}  Rxf2 {[%clk 0:00:49]} 35. Bc7 {[%clk 0:00:07]}  Rxh2 {[%clk 0:00:45]} 36. e6 {[%clk 0:00:04]}  fxe6 {[%clk 0:00:44]} 37. Bxa5 {[%clk 0:00:05]}  Kf7 {[%clk 0:00:40]} 38. Bc7 {[%clk 0:00:03]}  Ke8 {[%clk 0:00:39]} 39. a5 {[%clk 0:00:03]}  Kd7 {[%clk 0:00:39]} 40. Bf4 {[%clk 0:00:03]}  Kc6 {[%clk 0:00:39]} 41. Kd4 {[%clk 0:00:03]}  Re2 {[%clk 0:00:38]} 42. Kd3 {[%clk 0:00:01]}  Ra2 {[%clk 0:00:38]} 43. Bd2 {[%clk 0:00:01]}  Ra3+ {[%clk 0:00:36]} 44. Bc3 {[%clk 0:00:01]}  Kd5 {[%clk 0:00:36]} 0-1


[Site "https://www.chess.com"]

[Event "Titled Tuesday Blitz November 01 Late 2022"]
[White "Krishnan, Varun"]
[Black "Amburgy, Ryan"]
[WhiteFideId "5054508"]
[BlackFideId "30924820"]
[WhiteElo "2497"]
[BlackElo "2121"]
[Result "0-1"]
[Round "03"]
[TimeControl "180+1"]
[Date "2022.11.02"]
[WhiteClock "0:00:01"]
[BlackClock "0:00:31"]

1. e4 {[%clk 0:03:00]}  c6 {[%clk 0:02:59]} 2. d4 {[%clk 0:03:00]}  d5 {[%clk 0:02:59]} 3. exd5 {[%clk 0:03:00]}  cxd5 {[%clk 0:03:00]} 4. c4 {[%clk 0:03:00]}  Nf6 {[%clk 0:03:01]} 5. Nc3 {[%clk 0:02:59]}  g6 {[%clk 0:03:01]} 6. Qb3 {[%clk 0:02:59]}  Bg7 {[%clk 0:03:01]} 7. cxd5 {[%clk 0:02:59]}  O-O {[%clk 0:03:02]} 8. Be2 {[%clk 0:02:58]}  Nbd7 {[%clk 0:03:02]} 9. Bf3 {[%clk 0:02:58]}  Nb6 {[%clk 0:03:02]} 10. Nge2 {[%clk 0:02:58]}  Bg4 {[%clk 0:03:03]} 11. Bxg4 {[%clk 0:02:55]}  Nxg4 {[%clk 0:03:04]} 12. a4 {[%clk 0:02:50]}  Nf6 {[%clk 0:02:50]} 13. Nf4 {[%clk 0:02:49]}  a5 {[%clk 0:02:46]} 14. O-O {[%clk 0:02:45]}  h6 {[%clk 0:02:45]} 15. d6 {[%clk 0:02:34]}  e6 {[%clk 0:02:34]} 16. Nb5 {[%clk 0:02:25]}  Rc8 {[%clk 0:02:27]} 17. Bd2 {[%clk 0:02:11]}  Nc4 {[%clk 0:02:25]} 18. Bc3 {[%clk 0:01:54]}  b6 {[%clk 0:02:24]} 19. d5 {[%clk 0:01:45]}  exd5 {[%clk 0:02:15]} 20. Rad1 {[%clk 0:01:40]}  Nxd6 {[%clk 0:01:52]} 21. Bd4 {[%clk 0:01:15]}  Nc4 {[%clk 0:01:44]} 22. Bxf6 {[%clk 0:01:06]}  Qxf6 {[%clk 0:01:32]} 23. Nxd5 {[%clk 0:01:06]}  Qxb2 {[%clk 0:01:32]} 24. Ne7+ {[%clk 0:00:59]}  Kh7 {[%clk 0:01:32]} 25. Qxb2 {[%clk 0:00:58]}  Nxb2 {[%clk 0:01:33]} 26. Nxc8 {[%clk 0:00:58]}  Nxd1 {[%clk 0:01:34]} 27. Nxb6 {[%clk 0:00:58]}  Nc3 {[%clk 0:01:34]} 28. Nxc3 {[%clk 0:00:52]}  Bxc3 {[%clk 0:01:35]} 29. Nd5 {[%clk 0:00:52]}  Bg7 {[%clk 0:01:26]} 30. Rb1 {[%clk 0:00:43]}  Rc8 {[%clk 0:01:20]} 31. g3 {[%clk 0:00:42]}  Rc4 {[%clk 0:01:20]} 32. Nb6 {[%clk 0:00:30]}  Rc2 {[%clk 0:01:18]} 33. f4 {[%clk 0:00:20]}  Bd4+ {[%clk 0:01:14]} 34. Kh1 {[%clk 0:00:19]}  h5 {[%clk 0:01:08]} 35. Rb5 {[%clk 0:00:14]}  Ra2 {[%clk 0:01:00]} 36. Nc4 {[%clk 0:00:11]}  Rxa4 {[%clk 0:00:56]} 37. Nxa5 {[%clk 0:00:11]}  Bf6 {[%clk 0:00:47]} 38. Nc6 {[%clk 0:00:10]}  Kg7 {[%clk 0:00:45]} 39. Ne5 {[%clk 0:00:10]}  Re4 {[%clk 0:00:45]} 40. Kg2 {[%clk 0:00:09]}  g5 {[%clk 0:00:46]} 41. Nd3 {[%clk 0:00:09]}  g4 {[%clk 0:00:45]} 42. Rxh5 {[%clk 0:00:07]}  Re2+ {[%clk 0:00:43]} 43. Kf1 {[%clk 0:00:06]}  Rd2 {[%clk 0:00:43]} 44. Nf2 {[%clk 0:00:06]}  Kg6 {[%clk 0:00:41]} 45. Rb5 {[%clk 0:00:06]}  Bd4 {[%clk 0:00:40]} 46. Nxg4 {[%clk 0:00:06]}  f5 {[%clk 0:00:40]} 47. Ne5+ {[%clk 0:00:06]}  Kh5 {[%clk 0:00:35]} 48. Nf3 {[%clk 0:00:06]}  Rf2+ {[%clk 0:00:35]} 49. Ke1 {[%clk 0:00:06]}  Rxf3 {[%clk 0:00:36]} 50. Rxf5+ {[%clk 0:00:06]}  Kg4 {[%clk 0:00:36]} 51. Rg5+ {[%clk 0:00:06]}  Kh3 {[%clk 0:00:37]} 52. f5 {[%clk 0:00:06]}  Kg2 {[%clk 0:00:34]} 53. Ke2 {[%clk 0:00:04]}  Re3+ {[%clk 0:00:34]} 54. Kd2 {[%clk 0:00:05]}  Re5 {[%clk 0:00:33]} 55. Kd3 {[%clk 0:00:04]}  Be3 {[%clk 0:00:33]} 56. Rh5 {[%clk 0:00:04]}  Kf3 {[%clk 0:00:33]} 57. Kc4 {[%clk 0:00:02]}  Re4+ {[%clk 0:00:32]} 58. Kd5 {[%clk 0:00:02]}  Re8 {[%clk 0:00:31]} 59. Kd6 {[%clk 0:00:02]}  Kg4 {[%clk 0:00:31]} 60. Rh7 {[%clk 0:00:02]}  Kxf5 {[%clk 0:00:32]} 61. Rf7+ {[%clk 0:00:01]}  Kg4 {[%clk 0:00:32]} 62. Re7 {[%clk 0:00:01]}  Rd8+ {[%clk 0:00:31]} 0-1


[Site "https://www.chess.com"]

[Event "Titled Tuesday Blitz November 01 Late 2022"]
[White "Leitao, Rafael"]
[Black "Salman, Pavel"]
[WhiteFideId "2101246"]
[BlackFideId "24153753"]
[WhiteElo "2609"]
[BlackElo "2187"]
[Result "1-0"]
[Round "03"]
[TimeControl "180+1"]
[Date "2022.11.02"]
[WhiteClock "0:00:46"]
[BlackClock "0:01:01"]

1. c4 {[%clk 0:03:00]}  c5 {[%clk 0:03:00]} 2. Nf3 {[%clk 0:03:00]}  Nf6 {[%clk 0:03:00]} 3. Nc3 {[%clk 0:02:58]}  e6 {[%clk 0:03:00]} 4. e3 {[%clk 0:02:58]}  b6 {[%clk 0:03:00]} 5. d4 {[%clk 0:02:58]}  cxd4 {[%clk 0:03:00]} 6. exd4 {[%clk 0:02:57]}  Bb7 {[%clk 0:03:00]} 7. Be2 {[%clk 0:02:57]}  Be7 {[%clk 0:03:00]} 8. d5 {[%clk 0:02:55]}  exd5 {[%clk 0:02:56]} 9. cxd5 {[%clk 0:02:55]}  d6 {[%clk 0:02:57]} 10. O-O {[%clk 0:02:55]}  O-O {[%clk 0:02:57]} 11. Nd4 {[%clk 0:02:17]}  Re8 {[%clk 0:02:50]} 12. Bf3 {[%clk 0:02:15]}  Bf8 {[%clk 0:02:49]} 13. Bg5 {[%clk 0:02:13]}  h6 {[%clk 0:02:48]} 14. Bh4 {[%clk 0:02:12]}  Nbd7 {[%clk 0:02:39]} 15. Nc6 {[%clk 0:02:12]}  Qc8 {[%clk 0:02:37]} 16. Rc1 {[%clk 0:02:07]}  Ba6 {[%clk 0:02:09]} 17. Re1 {[%clk 0:01:48]}  Rxe1+ {[%clk 0:02:07]} 18. Qxe1 {[%clk 0:01:49]}  Qe8 {[%clk 0:02:08]} 19. Qd2 {[%clk 0:01:40]}  Ne5 {[%clk 0:01:57]} 20. Bxf6 {[%clk 0:01:37]}  Nxf3+ {[%clk 0:01:57]} 21. gxf3 {[%clk 0:01:37]}  gxf6 {[%clk 0:01:58]} 22. Re1 {[%clk 0:01:30]}  Qd7 {[%clk 0:01:52]} 23. Qf4 {[%clk 0:01:27]}  Re8 {[%clk 0:01:46]} 24. Rxe8 {[%clk 0:01:17]}  Qxe8 {[%clk 0:01:47]} 25. Ne4 {[%clk 0:01:17]}  Bg7 {[%clk 0:01:33]} 26. Qxd6 {[%clk 0:01:17]}  f5 {[%clk 0:01:29]} 27. Ne7+ {[%clk 0:01:16]}  Kh8 {[%clk 0:01:26]} 28. Nxf5 {[%clk 0:01:17]}  Qg8 {[%clk 0:01:17]} 29. Neg3 {[%clk 0:01:03]}  Kh7 {[%clk 0:01:08]} 30. Qe7 {[%clk 0:00:54]}  Bd3 {[%clk 0:01:03]} 31. Nxg7 {[%clk 0:00:46]}  Qxg7 {[%clk 0:01:01]} 32. d6 {[%clk 0:00:46]} 1-0


[Site "https://www.chess.com"]

[Event "Titled Tuesday Blitz November 01 Late 2022"]
[White "Leschinsky, Gary"]
[Black "Bernat, David"]
[WhiteFideId "30951321"]
[BlackFideId "2099225"]
[WhiteElo "1855"]
[BlackElo "2280"]
[Result "0-1"]
[Round "03"]
[TimeControl "180+1"]
[Date "2022.11.02"]
[WhiteClock "0:00:50"]
[BlackClock "0:00:07"]

1. d4 {[%clk 0:03:00]}  Nf6 {[%clk 0:02:59]} 2. c4 {[%clk 0:03:01]}  e6 {[%clk 0:02:59]} 3. Nc3 {[%clk 0:03:01]}  Bb4 {[%clk 0:02:58]} 4. e3 {[%clk 0:03:01]}  O-O {[%clk 0:02:56]} 5. Bd2 {[%clk 0:03:02]}  b6 {[%clk 0:02:56]} 6. Nf3 {[%clk 0:02:46]}  Bb7 {[%clk 0:02:56]} 7. a3 {[%clk 0:02:45]}  Be7 {[%clk 0:02:53]} 8. Bd3 {[%clk 0:02:42]}  d5 {[%clk 0:02:54]} 9. cxd5 {[%clk 0:02:41]}  Nxd5 {[%clk 0:02:49]} 10. Nxd5 {[%clk 0:02:27]}  Bxd5 {[%clk 0:02:44]} 11. O-O {[%clk 0:02:23]}  Nd7 {[%clk 0:02:42]} 12. e4 {[%clk 0:02:17]}  Bb7 {[%clk 0:02:41]} 13. Bc3 {[%clk 0:02:14]}  c5 {[%clk 0:02:28]} 14. d5 {[%clk 0:02:13]}  exd5 {[%clk 0:02:23]} 15. exd5 {[%clk 0:02:14]}  Nf6 {[%clk 0:02:15]} 16. Re1 {[%clk 0:01:56]}  Nxd5 {[%clk 0:01:58]} 17. Be5 {[%clk 0:01:53]}  Bf6 {[%clk 0:01:55]} 18. Qc2 {[%clk 0:01:39]}  g6 {[%clk 0:01:42]} 19. Bg3 {[%clk 0:01:35]}  Re8 {[%clk 0:01:28]} 20. Bb5 {[%clk 0:01:24]}  Rxe1+ {[%clk 0:01:10]} 21. Rxe1 {[%clk 0:01:25]}  Qf8 {[%clk 0:00:52]} 22. h4 {[%clk 0:01:21]}  a6 {[%clk 0:00:32]} 23. Bd7 {[%clk 0:01:19]}  Rd8 {[%clk 0:00:28]} 24. Bg4 {[%clk 0:01:17]}  h5 {[%clk 0:00:25]} 25. Bh3 {[%clk 0:01:17]}  Qg7 {[%clk 0:00:25]} 26. Ne5 {[%clk 0:01:15]}  Re8 {[%clk 0:00:22]} 27. f4 {[%clk 0:01:14]}  Nxf4 {[%clk 0:00:16]} 28. Bxf4 {[%clk 0:01:14]}  Bxe5 {[%clk 0:00:16]} 29. Kh1 {[%clk 0:01:11]}  Bc6 {[%clk 0:00:14]} 30. Bg5 {[%clk 0:01:01]}  Bf6 {[%clk 0:00:09]} 31. Rd1 {[%clk 0:00:59]}  Bxg5 {[%clk 0:00:09]} 32. hxg5 {[%clk 0:00:59]}  Qe5 {[%clk 0:00:08]} 33. Qd2 {[%clk 0:00:57]}  Qe3 {[%clk 0:00:07]} 34. Qxe3 {[%clk 0:00:48]}  Rxe3 {[%clk 0:00:08]} 35. Rd6 {[%clk 0:00:48]}  Rxh3+ {[%clk 0:00:05]} 36. Kg1 {[%clk 0:00:48]}  Bxg2 {[%clk 0:00:04]} 37. Kxg2 {[%clk 0:00:48]}  Rb3 {[%clk 0:00:05]} 38. Rd2 {[%clk 0:00:47]}  Kg7 {[%clk 0:00:05]} 39. Kh2 {[%clk 0:00:47]}  b5 {[%clk 0:00:05]} 40. Re2 {[%clk 0:00:47]}  b4 {[%clk 0:00:05]} 41. axb4 {[%clk 0:00:47]}  cxb4 {[%clk 0:00:06]} 42. Rd2 {[%clk 0:00:47]}  a5 {[%clk 0:00:06]} 43. Kg1 {[%clk 0:00:47]}  a4 {[%clk 0:00:07]} 44. Rd4 {[%clk 0:00:47]}  a3 {[%clk 0:00:08]} 45. bxa3 {[%clk 0:00:48]}  bxa3 {[%clk 0:00:07]} 46. Ra4 {[%clk 0:00:48]}  Rb5 {[%clk 0:00:05]} 47. Rxa3 {[%clk 0:00:47]}  Rxg5+ {[%clk 0:00:06]} 48. Kh2 {[%clk 0:00:48]}  Rf5 {[%clk 0:00:06]} 49. Kh3 {[%clk 0:00:48]}  f6 {[%clk 0:00:07]} 50. Ra8 {[%clk 0:00:47]}  Kh6 {[%clk 0:00:07]} 51. Kh4 {[%clk 0:00:47]}  Rf4+ {[%clk 0:00:07]} 52. Kg3 {[%clk 0:00:47]}  Kg5 {[%clk 0:00:07]} 53. Ra5+ {[%clk 0:00:46]}  Rf5 {[%clk 0:00:07]} 54. Ra6 {[%clk 0:00:46]}  Rb5 {[%clk 0:00:07]} 55. Kh3 {[%clk 0:00:47]}  Rb3+ {[%clk 0:00:07]} 56. Kg2 {[%clk 0:00:47]}  f5 {[%clk 0:00:07]} 57. Ra2 {[%clk 0:00:47]}  Kg4 {[%clk 0:00:06]} 58. Kh2 {[%clk 0:00:48]}  f4 {[%clk 0:00:06]} 59. Kg2 {[%clk 0:00:49]}  g5 {[%clk 0:00:06]} 60. Kh2 {[%clk 0:00:50]}  h4 {[%clk 0:00:07]} 61. Kg2 {[%clk 0:00:51]}  Rg3+ {[%clk 0:00:07]} 62. Kh2 {[%clk 0:00:51]}  Re3 {[%clk 0:00:07]} 63. Rf2 {[%clk 0:00:51]}  f3 {[%clk 0:00:07]} 64. Ra2 {[%clk 0:00:52]}  Re2+ {[%clk 0:00:07]} 65. Rxe2 {[%clk 0:00:47]}  fxe2 {[%clk 0:00:08]} 66. Kg2 {[%clk 0:00:48]}  e1=Q {[%clk 0:00:08]} 67. Kh2 {[%clk 0:00:49]}  Qe2+ {[%clk 0:00:07]} 68. Kh1 {[%clk 0:00:49]}  Kg3 {[%clk 0:00:07]} 69. Kg1 {[%clk 0:00:50]}  Qe1# {[%clk 0:00:07]} 0-1


[Site "https://www.chess.com"]

[Event "Titled Tuesday Blitz November 01 Late 2022"]
[White "Mahdavi, Reza"]
[Black "Santos Flores, Alberto"]
[WhiteFideId "12595926"]
[BlackFideId "3601234"]
[WhiteElo "2240"]
[BlackElo "2235"]
[Result "1-0"]
[Round "03"]
[TimeControl "180+1"]
[Date "2022.11.02"]
[WhiteClock "0:02:11"]
[BlackClock "0:00:28"]

1. e4 {[%clk 0:03:00]}  c5 {[%clk 0:02:58]} 2. Nf3 {[%clk 0:03:01]}  Nc6 {[%clk 0:02:56]} 3. Bb5 {[%clk 0:03:01]}  g6 {[%clk 0:02:54]} 4. O-O {[%clk 0:03:02]}  Bg7 {[%clk 0:02:54]} 5. Re1 {[%clk 0:03:03]}  Nf6 {[%clk 0:02:54]} 6. e5 {[%clk 0:03:03]}  Nd5 {[%clk 0:02:53]} 7. Nc3 {[%clk 0:03:04]}  Nc7 {[%clk 0:02:42]} 8. Bxc6 {[%clk 0:03:05]}  dxc6 {[%clk 0:02:42]} 9. Ne4 {[%clk 0:03:05]}  Ne6 {[%clk 0:02:20]} 10. d3 {[%clk 0:03:03]}  O-O {[%clk 0:02:20]} 11. Be3 {[%clk 0:03:02]}  b6 {[%clk 0:02:20]} 12. Qd2 {[%clk 0:03:02]}  Nd4 {[%clk 0:02:17]} 13. Nxd4 {[%clk 0:03:01]}  cxd4 {[%clk 0:02:18]} 14. Bh6 {[%clk 0:03:02]}  c5 {[%clk 0:02:10]} 15. Qf4 {[%clk 0:02:53]}  Qd5 {[%clk 0:01:53]} 16. Nf6+ {[%clk 0:02:38]}  exf6 {[%clk 0:01:32]} 17. Bxg7 {[%clk 0:02:34]}  Bb7 {[%clk 0:01:06]} 18. f3 {[%clk 0:02:30]}  Kxg7 {[%clk 0:01:06]} 19. exf6+ {[%clk 0:02:30]}  Kh8 {[%clk 0:01:05]} 20. Re5 {[%clk 0:02:26]}  Qd6 {[%clk 0:01:00]} 21. Rae1 {[%clk 0:02:26]}  Rg8 {[%clk 0:00:55]} 22. Qg5 {[%clk 0:02:24]}  Bc6 {[%clk 0:00:52]} 23. Re7 {[%clk 0:02:25]}  Rae8 {[%clk 0:00:51]} 24. Kf2 {[%clk 0:02:20]}  Rxe7 {[%clk 0:00:50]} 25. Rxe7 {[%clk 0:02:21]}  Bd5 {[%clk 0:00:43]} 26. h4 {[%clk 0:02:19]}  Qh2 {[%clk 0:00:38]} 27. Qxd5 {[%clk 0:02:11]}  Qxh4+ {[%clk 0:00:38]} 28. Kg1 {[%clk 0:02:10]}  Qxf6 {[%clk 0:00:39]} 29. Rxf7 {[%clk 0:02:10]}  Qh4 {[%clk 0:00:38]} 30. Qe5+ {[%clk 0:02:10]}  Rg7 {[%clk 0:00:28]} 31. Qxg7# {[%clk 0:02:11]} 1-0


[Site "https://www.chess.com"]